Cogmind - Beta 14 @@@ ROGUE MODE // 2024.09.09 @ 22:41:27 Player: Blanco! Result: Destroyed by G-50 Soldier with Heavy Laser Performance ------------- Evolutions (1) 500 Regions Visited (5) 1000 Robots Destroyed (41) 205 Value Destroyed (840) 840 Prototype IDs (0) 0 Alien Tech Used (0) 0 Bonus (-132) -132 TOTAL SCORE: 2413 Bonus ------- High Alert Combat Kills 8 Friendly Fire -140 Cogmind --------- Core Integrity 0/400 Matter 216/300 Energy 325/325 System Corruption 7% Temperature Cool (-91) Movement Rolling (230) Ox10 Location -8/Mines Parts ------- > --- POWER (2) -------- Reinforced Ion Engine Light Nuclear Core > --- PROPULSION (2) --- Wheel Wheel > --- UTILITY (3) ------ Cryofiber Web Humpback > --- WEAPON (2) ------- Mini Grenade Launcher Mace > --- INVENTORY (35) --- Light Ion Engine Light Treads Light Treads Armored Treads Aluminum Leg Aluminum Leg Wheel Medium Storage Unit Advanced Targeting Computer Heavy Hammer Heavy Hammer Peak State ------------ > --- POWER ------------ Light Nuclear Core Light Nuclear Core > --- PROPULSION ------- Light Treads Armored Treads > --- UTILITY ---------- Humpback High-capacity Matter Pod > --- WEAPON ----------- Mini Grenade Launcher Katana > --- INVENTORY -------- Light Treads Aluminum Leg Aluminum Leg Wheel Cryofiber Web Medium Storage Unit Advanced Targeting Computer Mace Heavy Hammer Heavy Hammer [Rating: 19] Favorites ----------- Power Ion Engine Engine Ion Engine Power Core Light Nuclear Core Propulsion Light Treads Treads Light Treads Leg Aluminum Leg Wheel Wheel Utility Humpback Device Cryofiber Web Storage Humpback Processor Improved Targeting Computer Protection Light Armor Plating Weapon Mini Grenade Launcher Energy Gun Heavy EM Pulse Gun Ballistic Gun Assault Rifle Launcher Mini Grenade Launcher Impact Weapon Mace Slashing Weapon Katana Special Melee Weapon Datajack Build | -11 -10 -9 -9 -9 -8 ------- Run | Yrd Mat Mat Min Exi Min Slots Evolved 2 | . . 2 . . . Power 1 | . . 1 . . . Propulsion . | . . . . . . Utility 1 | . . 1 . . . Weapon . | . . . . . . Parts Attached 58 | 6 10 15 6 3 18 Power 13 | 1 2 3 1 . 6 Engine 11 | 1 2 3 1 . 4 Core 2 | . . . . . 2 Reactor . | . . . . . . Propulsion 14 | 2 1 2 . 2 7 Treads 4 | . . . . 2 2 Leg 2 | . . 2 . . . Wheel 8 | 2 1 . . . 5 Hover . | . . . . . . Flight . | . . . . . . Utility 13 | 1 3 3 3 1 2 Device 3 | . 1 . 1 . 1 Storage 5 | 1 1 1 . 1 1 Processor 2 | . 1 1 . . . Hackware . | . . . . . . Protection 3 | . . 1 2 . . Artifact . | . . . . . . Weapon 18 | 2 4 7 2 . 3 Energy Gun 2 | . 1 1 . . . Energy Cannon . | . . . . . . Ballistic Gun 5 | 2 2 . . . 1 Ballistic Cannon . | . . . . . . Launcher 4 | . . 2 2 . . Special Weapon . | . . . . . . Impact Weapon 5 | . . 4 . . 1 Slashing Weapon 1 | . . . . . 1 Piercing Weapon . | . . . . . . Special Melee Weapon 1 | . 1 . . . . Unidentified Prototypes . | . . . . . . Parts Lost 19 | . . 7 . . 12 Power 8 | . . 3 . . 5 Propulsion 3 | . . 1 . . 2 Utility 4 | . . 2 . . 2 Weapon 4 | . . 1 . . 3 Highest Loss Streak 5 | . . 3 . . 5 To Critical Strikes . | . . . . . . Average Slot Usage (%) 88 | . 96 92 89 89 86 Engine 16 | . 13 17 16 22 12 Core 4 | . . . . . 8 Treads 13 | . . . . 17 13 Leg 2 | . . 11 22 4 . Wheel 6 | . 28 10 . . 8 Device 3 | . 5 . 2 . 7 Storage 14 | . 17 22 22 12 13 Protection 5 | . . 3 4 11 1 Ballistic Gun 1 | . 26 1 . . . Launcher 15 | . . 5 20 22 12 Impact Weapon 3 | . . 5 1 . 7 Peak Build Rating 19 | 6 7 13 14 12 19 Average Rating 13 | 4 6 10 10 11 16 On Entrance 7 | . 6 7 9 12 12 Naked Turns . | . . . . . . Heaviest Build 220 | 12 16 28 28 219 220 Greatest Support 40 | 26 26 20 20 40 40 Greatest Overweight (x) 10 | . . 1 1 10 10 Average Overweight (x) 4 | . . . . 3 8 Largest Inventory Capacity 35 | 8 8 8 8 35 35 Average Capacity 29 | 7 8 8 8 30 35 Most Carried 14 | 6 8 8 8 9 14 Average Carried 8 | 3 7 7 7 8 8 Final Capacity 35 | 8 8 8 8 35 35 Final Carried 11 | 6 8 7 8 9 11 Class Distribution -------------------- 78% | Hauler-Mutant 21% | Mutant Dominant Class ---------------- Mutant | -10/Materials Mutant | -9/Materials Mutant | -9/Mines Hauler-Mutant | -9/Exiles Hauler-Mutant | -8/Mines Resources | -11 -10 -9 -9 -9 -8 ----------- Run | Yrd Mat Mat Min Exi Min Matter Collected 1068 | 229 24 413 40 17 345 Remotely 24 | . 24 . . . . Salvage Created 816 | . 24 383 35 . 374 Parts 58 | . 3 28 2 . 25 Haulers Intercepted . | . . . . . . Recyclers Shooed . | . . . . . . Parts Field Recycled . | . . . . . . Retrieved Matter . | . . . . . . Parts Self-Destructed . | . . . . . . Prevented . | . . . . . . Kills | -11 -10 -9 -9 -9 -8 ------- Run | Yrd Mat Mat Min Exi Min Combat Hostiles Destroyed 19 | . . 7 . . 12 Melee 3 | . . 1 . . 2 Guns 2 | . . 2 . . . AOE 13 | . . 3 . . 10 Classes Destroyed 10 | . 1 6 . . 3 Worker 8 | . . 3 . . 5 Builder 6 | . . 4 . . 2 Tunneler 3 | . 1 1 . . 1 Recycler 2 | . . 1 . . 1 Watcher 2 | . . 2 . . . Swarmer 3 | . . . . . 3 Grunt 13 | . . 6 . . 7 Brawler 1 | . . . . . 1 Duelist 1 | . . . . . 1 Sentry 1 | . . 1 . . . Thug 1 | . . . 1 . . Best Kill Streak 5 | . 1 4 . . 5 Combat Bots Only 3 | . . 2 . . 3 Max Kills in Single Turn 3 | . 1 3 1 . 2 Gunslinging . | . . . . . . Exploded 2 | . . 1 . . 2 Melee 1 | . . 1 . . 1 Uniques/NPCs Destroyed . | . . . . . . Combat | -11 -10 -9 -9 -9 -8 -------- Run | Yrd Mat Mat Min Exi Min Hostile Shots Fired 171 | . . 88 . . 83 Missed 55 | . . 27 . . 28 Damage Taken 1744 | . 5 811 . . 928 Core 406 | . 5 229 . . 172 Absorbed by Shields . | . . . . . . Core Remaining (%) 99 | 100 98 . . . . Volleys Fired 38 | . 1 19 2 . 16 Largest 2 | . 2 2 2 . 2 Hottest 75 | . 40 75 60 . 60 Shots Fired 60 | . 2 31 4 . 23 Gun 23 | . 2 19 . . 2 Cannon . | . . . . . . Launcher 37 | . . 12 4 . 21 Special . | . . . . . . Kinetic 4 | . 2 . . . 2 Thermal . | . . . . . . Explosive 37 | . . 12 4 . 21 Electromagnetic 19 | . . 19 . . . Robot Hit Streak 10 | . . 7 7 . 10 Robot Miss Streak 4 | . 2 4 . . 3 Penetration Max . | . . . . . . Secondary Targets . | . . . . . . Shots Hit Robots 50 | . . 25 4 . 21 Core Hits 60 | . 1 26 5 . 28 Critical Kills 1 | . . 1 . . . Critical Parts Destroyed 1 | . . . . . 1 Critical Strikes 2 | . . 1 . . 1 Smash 2 | . . 1 . . 1 Melee Attacks 17 | . . 10 . . 7 Impact 12 | . . 10 . . 2 Slashing 5 | . . . . . 5 Piercing . | . . . . . . Sneak Attacks 3 | . . . . . 3 Combat Hostiles . | . . . . . . Follow-up Attacks . | . . . . . . Damage Inflicted 3042 | . 26 1460 116 . 1440 Guns 171 | . 14 144 . . 13 Cannons . | . . . . . . Explosions 2197 | . . 999 116 . 1082 Melee 623 | . . 317 . . 306 Ramming 51 | . 12 . . . 39 Kinetic 27 | . 14 . . . 13 Thermal . | . . . . . . Explosive 2197 | . . 999 116 . 1082 Electromagnetic 144 | . . 144 . . . Impact 475 | . . 317 . . 158 Slashing 148 | . . . . . 148 Piercing . | . . . . . . Highest Corruption 7 | . 1 . . . 7 Average Corruption 6 | . 1 . . . 6 Corruption Purged . | . . . . . . Corruption Blocked . | . . . . . . Effects 43 | . . . . . 43 Message Errors 12 | . . . . . 12 Matter Fused 7 | . . . . . 7 Heat Flow Errors 7 | . . . . . 7 Energy Discharges 9 | . . . . . 9 Data Loss (minor) 4 | . . . . . 4 Misfires 3 | . . . . . 3 Alerts 1 | . . . . . 1 Overload Shots . | . . . . . . Overflow Damage 136 | . . 26 . . 110 Projectiles . | . . . . . . Explosions 59 | . . 22 . . 37 Melee 77 | . . 4 . . 73 Knockbacks 5 | . . 4 . . 1 Impact 4 | . . 3 . . 1 Kinetic . | . . . . . . Secondary 1 | . . 1 . . . Self-Inflicted Damage 280 | . 5 43 . . 232 Shots 12 | . . 3 . . 9 Rammed 5 | . 3 . . . 2 Targets Rammed 7 | . 3 . . . 4 Kicked . | . . . . . . Crushed 2 | . . . . . 2 Highest Temperature 234 | . . 81 . . 234 Average Temperature 44 | . . 24 . . 61 Received Heat Transfer 654 | . . 402 . . 252 Siege Activations . | . . . . . . Robots Corrupted 2 | . . 1 . . 1 Combat Hostiles 1 | . . 1 . . . Parts Fried 1 | . . 1 . . . Impact Corruptions 4 | . . 2 . . 2 Robots Melted . | . . . . . . Combat Hostiles . | . . . . . . Parts Melted . | . . . . . . Heat Transferred . | . . . . . . Parts Sabotaged . | . . . . . . Parts Stolen . | . . . . . . Parts Stripped . | . . . . . . Power Chain Reactions . | . . . . . . Alert | -11 -10 -9 -9 -9 -8 ------- Run | Yrd Mat Mat Min Exi Min Peak Influence 400 | . 20 400 190 . 267 Initial 156 | . . 8 156 . . Average 51 | . 9 176 185 . 29 Maximum Alert Level 2 | . . 2 . . 1 Low Security (%) 92 | 100 100 54 100 . 97 Level 1 7 | . . 44 . . 2 Level 2 . | . . 1 . . . Level 3 . | . . . . . . Level 4 . | . . . . . . Level 5 . | . . . . . . High Security . | . . . . . . Max Security . | . . . . . . Squads Dispatched 1 | . . . . . 1 Investigation . | . . . . . . Extermination . | . . . . . . Reinforcement 1 | . . . . . 1 Assault . | . . . . . . Garrison . | . . . . . . Intercept . | . . . . . . Searches Triggered . | . . . . . . Construction Impeded 1 | . . . . . 1 Haulers Reinforced . | . . . . . . Active Scanning Responses . | . . . . . . Cargo Convoy Interrupts . | . . . . . . Stealth | -11 -10 -9 -9 -9 -8 --------- Run | Yrd Mat Mat Min Exi Min Distress Signals 1 | . . 1 . . . Communications Jammed . | . . . . . . Distress Signals . | . . . . . . Times Spotted 36 | . 1 18 1 . 16 Peak Tracking Total 5 | . 1 5 1 . 4 Tactical Retreats 5 | . . 5 . . . Traps | -11 -10 -9 -9 -9 -8 ------- Run | Yrd Mat Mat Min Exi Min Traps Triggered 1 | . 1 . . . . Indirectly . | . . . . . . Trap Hack Attempts . | . . . . . . Triggered . | . . . . . . Disarmed . | . . . . . . Reprogrammed . | . . . . . . Reused . | . . . . . . Traps Extracted . | . . . . . . Installed . | . . . . . . Triggered . | . . . . . . Machines | -11 -10 -9 -9 -9 -8 ---------- Run | Yrd Mat Mat Min Exi Min Machines Disabled 4 | . . 1 2 . 1 Max in Single Turn 2 | . . 1 2 . 1 Machines Repaired . | . . . . . . Machines Dismantled . | . . . . . . Machines Sabotaged . | . . . . . . Overloaded Fab Kills . | . . . . . . Hacking | -11 -10 -9 -9 -9 -8 --------- Run | Yrd Mat Mat Min Exi Min Machines Accessed 2 | . 1 . . 1 . Terminals . | . . . . . . Fabricators . | . . . . . . Repair Stations . | . . . . . . Recycling Units 1 | . 1 . . . . Scanalyzers . | . . . . . . Garrison Access . | . . . . . . Total Hacks 24 | . 1 . . 23 . Successful 23 | . . . . 23 . Failed 1 | . 1 . . . . Catastrophic 1 | . 1 . . . . Database Lockouts . | . . . . . . Manual . | . . . . . . Terminals . | . . . . . . Fabricators . | . . . . . . Repair Stations . | . . . . . . Recycling Units 1 | . 1 . . . . Scanalyzers . | . . . . . . Garrison Access . | . . . . . . Terminal Hacks 23 | . . . . 23 . Record 23 | . . . . 23 . Fabricator Hacks . | . . . . . . Repair Station Hacks . | . . . . . . Recycling Unit Hacks . | . . . . . . Scanalyzer . | . . . . . . Garrison Access Hacks . | . . . . . . Unauthorized Hacks . | . . . . . . Terminals . | . . . . . . Fabricators . | . . . . . . Repair Stations . | . . . . . . Recycling Units . | . . . . . . Scanalyzers . | . . . . . . Garrison Access . | . . . . . . Data Cores Recovered . | . . . . . . Used . | . . . . . . Hacking Detections 1 | . 1 . . . . Full Trace Events . | . . . . . . Feedback Events . | . . . . . . Feedback Blocked . | . . . . . . Robot Schematics Acquired . | . . . . . . Robots Built . | . . . . . . Authchips . | . . . . . . Time . | . . . . . . Total Robot Build Rating . | . . . . . . Part Schematics Acquired . | . . . . . . Parts Built . | . . . . . . Authchips . | . . . . . . Time . | . . . . . . Total Part Build Rating . | . . . . . . Parts Repaired . | . . . . . . Time . | . . . . . . Parts Recycled . | . . . . . . Recycled Matter . | . . . . . . Retrieved Matter . | . . . . . . Retrieved Components . | . . . . . . Parts Scanalyzed . | . . . . . . Part Schematics Acquired . | . . . . . . Parts Damaged . | . . . . . . Bothacking | -11 -10 -9 -9 -9 -8 ------------ Run | Yrd Mat Mat Min Exi Min Used RIF Installer . | . . . . . . Robots Hacked . | . . . . . . Non-combat . | . . . . . . Combat . | . . . . . . Robot Hacks Applied . | . . . . . . Relay Couplers Released . | . . . . . . Fabnet Peak Effective % . | . . . . . . Robots Rewired . | . . . . . . Allies Hacked . | . . . . . . Hacks Repelled . | . . . . . . Allies | -11 -10 -9 -9 -9 -8 -------- Run | Yrd Mat Mat Min Exi Min Total Allies . | . . . . . . Largest Group . | . . . . . . Highest-Rated Group . | . . . . . . Highest-Rated Ally . | . . . . . . Total Orders . | . . . . . . Ally Attacks . | . . . . . . Total Damage . | . . . . . . Kills . | . . . . . . Allies Corrupted . | . . . . . . Allies Melted . | . . . . . . Intel | -11 -10 -9 -9 -9 -8 ------- Run | Yrd Mat Mat Min Exi Min Robot Analysis Total . | . . . . . . Derelict Logs Recovered . | . . . . . . Drone Launches . | . . . . . . Drone Recoveries . | . . . . . . Exploration | -11 -10 -9 -9 -9 -8 ------------- Run | Yrd Mat Mat Min Exi Min Turns Passed 4555 | 54 220 384 79 1723 2095 Spaces Moved 1478 | 43 225 226 39 392 553 Core 5 | 5 . . . . . Treads 465 | . . . . 252 213 Legs 267 | . . 88 39 140 . Wheels 741 | 38 225 138 . . 340 Hover . | . . . . . . Flight . | . . . . . . Fastest Speed 50 | 50 80 80 120 190 230 Average Speed 288 | 85 86 122 161 437 358 Slowest Speed 820 | 90 90 190 190 820 565 Overloaded Moves . | . . . . . . Propulsion Burnouts . | . . . . . . Robots Hopped . | . . . . . . Cave-ins Triggered . | . . . . . . Exploration Rate (%) 36 | 3 27 20 8 76 84 Regions Visited 5 Branch Regions 3 Pre-discovered Areas 1 | . . . . 1 . Known Exits Taken . | . . . . . . Unknown Exits Taken 5 | 1 1 1 1 1 . Scrap Searched 1 | . . . . . 1 Spaces Dug . | . . . . . . Terrain Destroyed 275 | . . 67 34 . 174 Melee . | . . . . . . Projectile . | . . . . . . AOE 275 | . . 67 34 . 174 Terrain Rammed . | . . . . . . Walls Destroyed . | . . . . . . Machines Disabled . | . . . . . . Actions | -11 -10 -9 -9 -9 -8 --------- Run | Yrd Mat Mat Min Exi Min Total 1658 | 60 245 283 51 405 614 Wait . | . . . . . . Move 1473 | 42 224 225 38 391 553 Hop . | . . . . . . Pick Up 51 | 12 5 9 3 7 15 Fast Attach 6 | . 2 2 2 . . Attach 30 | 6 3 6 2 1 12 Detach 1 | . . 1 . . . Swap 22 | . 5 7 2 2 6 Drop 13 | . 2 4 2 4 1 Fire 38 | . 1 19 2 . 16 Melee 17 | . . 10 . . 7 Ram 3 | . 3 . . . . Kick . | . . . . . . Crush 4 | . . . . . 4 Escape Stasis . | . . . . . . Rewire . | . . . . . . Trap . | . . . . . . Miscellaneous . | . . . . . . Route ------- -11/Scrapyard -10/Materials -9/Materials -9/Mines -9/Exiles (discovered 2 exits: [*Min x2]) -8/Mines (discovered 1 exit: [*Mat]) History --------- Turn | Location | Event 34 | -11/Scrapyard | Discovered new exit (range 15) 55 | -11/Scrapyard | Entered Materials 244 | -10/Materials | Discovered new exit (range 15) 275 | -10/Materials | Entered another Materials area 275 | -9/Materials | Evolved 2 slots: Power x1, Utility x1 338 | -9/Materials | Build established: Mutant 490 | -9/Materials | Lost 3 parts (1p1n1u) 629 | -9/Materials | Core integrity fell below 50% 644 | -9/Materials | Discovered new exit (range 10) 659 | -9/Materials | Entered Mines 667 | -9/Mines | Joined a pair of Derelicts in attacking an 0b10 outpost 673 | -9/Mines | Discovered new exit (range 12) 738 | -9/Mines | Entered Exiles 794 | -9/Exiles | Discovered new exit (range 15) 845 | -9/Exiles | Met 8R-AWN 906 | -9/Exiles | Met EX-HEX 1184 | -9/Exiles | Met EX-DEC 1281 | -9/Exiles | Build established: Hauler-Mutant 1353 | -9/Exiles | Visited The Gauntlet 2080 | -9/Exiles | Learned location of Zion (-7) 2349 | -9/Exiles | Discovered new exit (range 15) 2461 | -9/Exiles | Entered Mines 2815 | -8/Mines | Lost 3 parts (2p1w) 3063 | -8/Mines | Core integrity fell below 20% 3103 | -8/Mines | Lost 5 parts (3p2n) 4546 | -8/Mines | Discovered new exit (range 7) 4556 | -8/Mines | Destroyed by G-50 Soldier with Heavy Laser Last Messages --------------- 04367_ U-05 Engineer lays Concrete. 04369_ System corrupted: Energy discharge (-100). 04437_ System corrupted: Matter fused (-5). 04437_ Sneak attack on K-01 Serf. 04437_ K-01 Serf suffers critical hit (Smash). 04437_ Destroyed Med. Matter Pod. 04437_ Destroyed Wheel. 04437_ K-01 Serf system corrupted by crushing effect. 04438_ K-01 Serf system terminally corrupted. 04438_ K-01 Serf collects debris. 04440_ Acquired 10 matter. 04453_ Sneak attack on K-01 Serf. 04453_ K-01 Serf destroyed. 04454_ System corrupted: Heat flow error (+191). 04456_ Acquired 10 matter. 04461_ Acquired Lgt. Ion Engine. 04500_ W66HK5J 1QOHL5FQCCDONHXHE 04519_ Acquired Wheel. 04534_ Acquired 20 matter. 04546_ EXIT=FOUND Map ----- +----------------------------------------------------+ | ?????????????# ##### ##?????## ##???## # | | ???????????### #???## ###????### #???# | | ???????????# #????#####?????## ##??# | | ???????????# #??????????????# ##?# | | ???????????# ###?????????????## #?## | | ???????????# ##?????????????## #?## | | ??????????## #####????????## #?# | | ??????????# ##???????# ! #### | | ??????????# #??????# #?# | | ??????????## ##??????## #### ##?# | | ??????###??# ## ##????????#### ##??### #??# # | | ?????## #?# ######??###??????# ####### #?## ## | | ?????# ## ######### ##?????# # # ### ##? | | ?????# # ### ## #######??# # # ### #?? | | ??????# ### ####### # ### # #?? | | ??????# ! ##### ### ##?? | | ??????## ## %% *= %% #### | | ??????### ## ##### #### ##### # | | ???????####### ### ### #### #### ######### | | ???????##### ## ## # ###?# ###???????# | | ???????????# ## ### # #???######### ##????????# | | ??????####?## ## ### # #???????##### ####??????# | | #????## ##?### ## ####???????# ######?# | | ##### ### #?????### ##### ## ### | | + ## ###### #?????# # # #?# ## | | + ######### #@#?????###/##??### | | # ## ##???# # # #?????## ###???## | | ## ### ####????## ### ## #????## ###??### | | ?# #?# #????????###?####g#????## #????## | | ?# ### #??????????????? ????### #???## | | ?# #??????????????? g ??????#### #???# | | ?# #####??????????????? g?????????######??## | | ?# #??????????????????? ??????????????#### | | ?# #??????????????????#####????????????## | | ?# #???????????????????????????????????# | | ?# #???????????????????????????????????# | | ## #??????????????????????????????????## ## | | #?????????????????????????????????## ## | | #????????????????????????????????## # | | ####???????????????????????????????## | | #??###?????????????????????????????# | | ### ##????????????????????????????# # | | ## ##???????????????????????????## #### # | | #????????????????????????????####??## # | | #???????????????????????????????????## | | ## #?????????????????????????????## # | | ?## ## #???????????????????????????????### | | ???###??########?????????????????????????????????? | | ?????????????????????????????????????????????????? | | | +----------------------------------------------------+ Best States ------------- Heat Dissipation 42 Energy Generation 21 Energy Capacity 415 Matter Stores 403 Matter Capacity 500 Sight Range 16 Terrain Scan Density 10 Base Temperature (-) 100 Armor Coverage 225 Evasion (%) 55 Targeting Accuracy 6 Recoil Reduction 2 Item Schematics ----------------- None Robot Schematics ------------------ None Fabricated ------------ Nothing Alien Tech Used ----------------- None Achievements -------------- Backstab Librarian Maybe Next Time I'll Detach My Launcher Tank Challenges ------------ None Game ------ Seed FissionBombCharger Manual? 0 Play Time 00:42:29 Cumulative 7.3 hours Start 2024.09.09 @ 21:54:56 End 2024.09.09 @ 22:41:27 Sessions 1 Manual Loads 0 Difficulty Rogue Special Mode None Game No. 7 Rogue 7 Adventurer 0 Explorer 0 Win Type - Total 0 Types 0/0/0/0/0/0/0/0/0 Lore% 2 Gallery% 10 Achievement% 10 Wizard Run 0 Options --------- Layout 0 ASCII 0 Keyboard 0 Movement Arrows Keybinds 0 Fullscreen 2 Font 18/SmallcapsGlow Map View 38x25 Zoom Use 99% Tactical HUD 1 Map Filters NONE Filters NONE Steam 1 RUN: 86d811aa-912f-4550-ad71-f695ef0eaca7